Cogmind - Beta 13 @@@ ROGUE MODE // 2024.04.04 @ 22:42:15 Player: f3-rnm Result: Destroyed by ZR-R0Z(R) with Subdweller Beam Cannon Performance ------------- Evolutions (0) 0 Regions Visited (2) 400 Robots Destroyed (20) 100 Value Destroyed (292) 292 Prototype IDs (0) 0 Alien Tech Used (0) 0 Bonus (0) 0 TOTAL SCORE: 792 Bonus ------- None Cogmind --------- Core Integrity 0/250 Matter 258/300 Energy 100/100 System Corruption 0% Temperature Cool (9) Movement Core (200) Ox3 Location -10/Subcaves Parts ------- > --- POWER (1) -------- (None) > --- PROPULSION (2) --- (None) > --- UTILITY (2) ------ Medium Storage Unit > --- WEAPON (2) ------- Hammer > --- INVENTORY (10) --- High-capacity Matter Pod (200) Medium Laser Assault Rifle Light Assault Rifle Light Assault Rifle Makeshift Sword Peak State ------------ > --- POWER ------------ Light Ion Engine > --- PROPULSION ------- Light Treads Light Treads > --- UTILITY ---------- Small Storage Unit Medium Storage Unit > --- WEAPON ----------- Medium Laser Medium Laser > --- INVENTORY -------- Ion Engine Wheel High-capacity Matter Pod Assault Rifle Light Assault Rifle Light Assault Rifle [Rating: 7] Favorites ----------- Power Light Ion Engine Engine Light Ion Engine Propulsion Light Treads Treads Light Treads Wheel Wheel Utility Medium Storage Unit Storage Medium Storage Unit Weapon Medium Laser Energy Gun Medium Laser Ballistic Gun Assault Rifle Impact Weapon Hammer Build | -11 -10 -10 ------- Run | Yrd Mat Sub Slots Evolved . | . . . Power . | . . . Propulsion . | . . . Utility . | . . . Weapon . | . . . Parts Attached 16 | 6 4 6 Power 2 | 1 . 1 Engine 2 | 1 . 1 Core . | . . . Reactor . | . . . Propulsion 5 | 2 1 2 Treads 4 | 2 1 1 Leg . | . . . Wheel 1 | . . 1 Hover . | . . . Flight . | . . . Utility 2 | 1 1 . Device . | . . . Storage 2 | 1 1 . Processor . | . . . Hackware . | . . . Protection . | . . . Artifact . | . . . Weapon 7 | 2 2 3 Energy Gun 3 | 2 1 . Energy Cannon . | . . . Ballistic Gun 2 | . . 2 Ballistic Cannon . | . . . Launcher . | . . . Special Weapon . | . . . Impact Weapon 2 | . 1 1 Slashing Weapon . | . . . Piercing Weapon . | . . . Special Melee Weapon . | . . . Unidentified Prototypes . | . . . Parts Lost 7 | . . 7 Power 2 | . . 2 Propulsion 4 | . . 4 Utility . | . . . Weapon 1 | . . 1 Highest Loss Streak 6 | . . 6 To Critical Strikes . | . . . Average Slot Usage (%) 84 | . 84 83 Engine 13 | . 14 13 Treads 27 | . 28 27 Storage 14 | . 14 14 Energy Gun 25 | . 27 13 Ballistic Gun 1 | . . 8 Naked Turns . | . . . Heaviest Build 17 | 12 17 17 Greatest Support 40 | 40 40 40 Greatest Overweight (x) 1 | . . 1 Average Overweight (x) . | . . . Largest Inventory Capacity 10 | 8 10 10 Average Capacity 9 | 7 9 10 Most Carried 8 | 2 8 8 Average Carried 6 | . 6 7 Final Capacity 10 | 8 10 10 Final Carried 8 | 2 8 6 Class Distribution -------------------- 100% | Mutant Dominant Class ---------------- Mutant | -10/Materials Mutant | -10/Subcaves Resources | -11 -10 -10 ----------- Run | Yrd Mat Sub Matter Collected 517 | 247 220 50 Remotely . | . . . Salvage Created 588 | . 431 157 Parts 31 | . 25 6 Haulers Intercepted 2 | . 2 . Recyclers Shooed . | . . . Parts Field Recycled . | . . . Retrieved Matter . | . . . Parts Self-Destructed 5 | . . 5 Prevented . | . . . Kills | -11 -10 -10 ------- Run | Yrd Mat Sub Combat Hostiles Destroyed 13 | . 10 3 Guns 13 | . 10 3 Classes Destroyed 8 | . 7 1 Worker 1 | . 1 . Builder 1 | . 1 . Hauler 2 | . 2 . Recycler 1 | . 1 . Watcher 2 | . 2 . Swarmer 9 | . 9 . Grunt 1 | . 1 . Subdweller 3 | . . 3 Best Kill Streak 7 | . 7 2 Combat Bots Only 6 | . 6 2 Max Kills in Single Turn 1 | . 1 1 Gunslinging . | . . . Exploded . | . . . Melee . | . . . Uniques/NPCs Destroyed . | . . . Combat | -11 -10 -10 -------- Run | Yrd Mat Sub Hostile Shots Fired 88 | . 42 46 Missed 24 | . 13 11 Damage Taken 1188 | . 236 952 Core 261 | . 22 239 Absorbed by Shields . | . . . Regen/Repaired (Parts) 43 | . 43 . Core Remaining (%) 100 | 100 . . Volleys Fired 63 | . 46 17 Largest 2 | . 2 2 Hottest 100 | . 100 70 Shots Fired 126 | . 92 34 Gun 126 | . 92 34 Cannon . | . . . Launcher . | . . . Special . | . . . Kinetic 17 | . . 17 Thermal 109 | . 92 17 Explosive . | . . . Electromagnetic . | . . . Robot Hit Streak 14 | . 7 14 Robot Miss Streak 6 | . 6 2 Penetration Max . | . . . Secondary Targets 1 | . 1 . Max Gunslinging Chain 1 | . 1 . Shots Hit Robots 85 | . 52 33 Core Hits 28 | . 21 7 Critical Kills . | . . . Critical Parts Destroyed . | . . . Critical Strikes 12 | . 10 2 Burn 10 | . 10 . Destroy 1 | . . 1 Smash 1 | . . 1 Melee Attacks 16 | . 3 13 Impact 16 | . 3 13 Slashing . | . . . Piercing . | . . . Sneak Attacks 1 | . 1 . Combat Hostiles . | . . . Follow-up Attacks . | . . . Damage Inflicted 1225 | . 741 484 Guns 1019 | . 691 328 Cannons . | . . . Explosions . | . . . Melee 192 | . 36 156 Ramming 14 | . 14 . Kinetic 154 | . . 154 Thermal 865 | . 691 174 Explosive . | . . . Electromagnetic . | . . . Impact 192 | . 36 156 Slashing . | . . . Piercing . | . . . Highest Corruption . | . . . Average Corruption . | . . . Corruption Purged . | . . . Corruption Blocked . | . . . Overload Shots . | . . . Overflow Damage 6 | . . 6 Projectiles . | . . . Explosions . | . . . Melee 6 | . . 6 Knockbacks 2 | . . 2 Impact 2 | . . 2 Kinetic . | . . . Secondary . | . . . Self-Inflicted Damage . | . . . Shots . | . . . Rammed 5 | . 5 . Targets Rammed 5 | . 5 . Kicked . | . . . Crushed . | . . . Highest Temperature 382 | . 382 . Average Temperature 116 | . 116 . Received Heat Transfer 135 | . 6 129 Effects 3 | . 3 . Shutdowns 2 | . 2 . Short Circuit 1 | . 1 . Siege Activations . | . . . Robots Corrupted . | . . . Combat Hostiles . | . . . Parts Fried . | . . . Impact Corruptions 1 | . . 1 Robots Melted 2 | . 2 . Combat Hostiles . | . . . Parts Melted 7 | . 6 1 Heat Transferred 3293 | . 2775 518 Parts Sabotaged . | . . . Parts Stolen . | . . . Parts Stripped . | . . . Power Chain Reactions . | . . . Alert | -11 -10 -10 ------- Run | Yrd Mat Sub Peak Influence 190 | . 190 . Initial . | . . . Average 70 | . 73 . Maximum Alert Level . | . . . Low Security (%) 100 | 100 100 . Level 1 . | . . . Level 2 . | . . . Level 3 . | . . . Level 4 . | . . . Level 5 . | . . . High Security . | . . . Max Security . | . . . Squads Dispatched 1 | . 1 . Investigation . | . . . Extermination . | . . . Reinforcement 1 | . 1 . Assault . | . . . Garrison . | . . . Intercept . | . . . Searches Triggered . | . . . Construction Impeded . | . . . Haulers Reinforced . | . . . Active Scanning Responses . | . . . Cargo Convoy Interrupts . | . . . Stealth | -11 -10 -10 --------- Run | Yrd Mat Sub Distress Signals 2 | . 2 . Communications Jammed . | . . . Distress Signals . | . . . Times Spotted 24 | . 19 5 Peak Tracking Total 6 | . 6 2 Tactical Retreats 1 | . 1 . Traps | -11 -10 -10 ------- Run | Yrd Mat Sub Traps Triggered 2 | . . 2 Indirectly . | . . . Trap Hack Attempts . | . . . Triggered . | . . . Disarmed . | . . . Reprogrammed . | . . . Reused . | . . . Traps Extracted . | . . . Installed . | . . . Triggered . | . . . Machines | -11 -10 -10 ---------- Run | Yrd Mat Sub Machines Disabled . | . . . Max in Single Turn . | . . . Machines Repaired . | . . . Machines Dismantled . | . . . Machines Sabotaged . | . . . Overloaded Fab Kills . | . . . Hacking | -11 -10 -10 --------- Run | Yrd Mat Sub Machines Accessed 5 | . 5 . Terminals 4 | . 4 . Fabricators . | . . . Repair Stations 1 | . 1 . Recycling Units . | . . . Scanalyzers . | . . . Garrison Access . | . . . Total Hacks 10 | . 10 . Successful 6 | . 6 . Failed 4 | . 4 . Catastrophic . | . . . Database Lockouts . | . . . Manual . | . . . Terminals 8 | . 8 . Fabricators . | . . . Repair Stations 2 | . 2 . Recycling Units . | . . . Scanalyzers . | . . . Garrison Access . | . . . Terminal Hacks 4 | . 4 . Terminal Index 1 | . 1 . Locate Traps 1 | . 1 . Hauler Manifests 1 | . 1 . Zone Layout 1 | . 1 . Fabricator Hacks . | . . . Repair Station Hacks 2 | . 2 . Scan Component 1 | . 1 . Repair 1 | . 1 . Recycling Unit Hacks . | . . . Scanalyzer . | . . . Garrison Access Hacks . | . . . Unauthorized Hacks . | . . . Terminals . | . . . Fabricators . | . . . Repair Stations . | . . . Recycling Units . | . . . Scanalyzers . | . . . Garrison Access . | . . . Data Cores Recovered . | . . . Used . | . . . Hacking Detections 2 | . 2 . Full Trace Events . | . . . Feedback Events . | . . . Feedback Blocked . | . . . Robot Schematics Acquired . | . . . Robots Built . | . . . Authchips . | . . . Time . | . . . Total Robot Build Rating . | . . . Part Schematics Acquired . | . . . Parts Built . | . . . Authchips . | . . . Time . | . . . Total Part Build Rating . | . . . Parts Repaired 1 | . 1 . Time 26 | . 26 . Parts Recycled . | . . . Recycled Matter . | . . . Retrieved Matter . | . . . Retrieved Components . | . . . Parts Scanalyzed . | . . . Part Schematics Acquired . | . . . Parts Damaged . | . . . Bothacking | -11 -10 -10 ------------ Run | Yrd Mat Sub Used RIF Installer . | . . . Robots Hacked . | . . . Non-combat . | . . . Combat . | . . . Robot Hacks Applied . | . . . Relay Couplers Released . | . . . Fabnet Peak Effective % . | . . . Robots Rewired . | . . . Allies Hacked . | . . . Hacks Repelled . | . . . Allies | -11 -10 -10 -------- Run | Yrd Mat Sub Total Allies . | . . . Largest Group . | . . . Highest-Rated Group . | . . . Highest-Rated Ally . | . . . Total Orders . | . . . Ally Attacks . | . . . Total Damage . | . . . Kills . | . . . Allies Corrupted . | . . . Allies Melted . | . . . Intel | -11 -10 -10 ------- Run | Yrd Mat Sub Robot Analysis Total . | . . . Derelict Logs Recovered . | . . . Drone Launches . | . . . Drone Recoveries . | . . . Exploration | -11 -10 -10 ------------- Run | Yrd Mat Sub Turns Passed 1904 | 68 1541 295 Spaces Moved 836 | 38 681 117 Core 2 | 2 . . Treads 833 | 36 681 116 Legs . | . . . Wheels 1 | . . 1 Hover . | . . . Flight . | . . . Fastest Speed 50 | 50 160 95 Average Speed 159 | 154 160 159 Slowest Speed 160 | 160 160 160 Overloaded Moves . | . . . Propulsion Burnouts . | . . . Robots Hopped . | . . . Cave-ins Triggered . | . . . Exploration Rate (%) 33 | 3 91 7 Regions Visited 2 Branch Regions 1 Pre-discovered Areas . | . . . Known Exits Taken . | . . . Unknown Exits Taken 2 | 1 1 . Scrap Searched . | . . . Spaces Dug . | . . . Terrain Destroyed . | . . . Melee . | . . . Projectile . | . . . AOE . | . . . Terrain Rammed . | . . . Walls Destroyed . | . . . Machines Disabled . | . . . Actions | -11 -10 -10 --------- Run | Yrd Mat Sub Total 1244 | 45 1032 167 Wait 298 | . 285 13 Move 834 | 37 680 117 Hop . | . . . Pick Up 10 | 2 7 1 Fast Attach 8 | 6 2 . Attach 4 | . 1 3 Detach . | . . . Swap 4 | . 1 3 Drop 2 | . 2 . Fire 63 | . 46 17 Melee 16 | . 3 13 Ram . | . . . Kick . | . . . Crush 5 | . 5 . Escape Stasis . | . . . Rewire . | . . . Trap . | . . . Miscellaneous . | . . . Route ------- -11/Scrapyard -10/Materials (discovered 6 exits: [*Mat x3] / [*Min x2] / [*Sub]) -10/Subcaves (discovered 1 exit: [*Mat]) History --------- Turn | Location | Event 17 | -11/Scrapyard | Discovered new exit (range 16) 69 | -11/Scrapyard | Entered Materials 100 | -10/Materials | Discovered new exit (range 5) 262 | -10/Materials | Discovered new exit (range 15) 317 | -10/Materials | Build established: Mutant 574 | -10/Materials | Discovered new exit (range 16) 864 | -10/Materials | Discovered new exit (range 11) 1087 | -10/Materials | Discovered new exit (range 4) 1156 | -10/Materials | Repaired Med. Laser 1606 | -10/Materials | Discovered new exit (range 2) 1610 | -10/Materials | Entered Subcaves 1736 | -10/Subcaves | Core integrity fell below 50% 1749 | -10/Subcaves | Discovered new exit (range 10) 1765 | -10/Subcaves | Shifting Twisted Machinery released Shrapnel Trap 1780 | -10/Subcaves | Shifting Twisted Machinery released Mak. Sword 1903 | -10/Subcaves | Core integrity fell below 20% 1905 | -10/Subcaves | Destroyed by ZR-R0Z(R) with Subdweller Beam Cannon Last Messages --------------- 01740_ 5M-94M(R) affixes Scrap Shield Fragment to Scrap Shield. 01742_ 5M-94M(R) destroyed. 01749_ EXIT=FOUND 01751_ Subatomizers dissect the Sub. Monowheel. 01753_ Triggered Shrapnel Trap. 01753_ An expanding cloud of shrapnel blasts out in all directions. Shrapnel Trap falls loose from the Twisted Machinery. 01766_ Subatomizers dissect the Sub. Monowheel. Mak. Sword falls loose from the Twisted Machinery. 01812_ Acquired Mak. Sword. 01880_ DD-ML4(R) knocked back. 01884_ ZR-R0Z(R) suffers critical hit (Smash). 01884_ ZR-R0Z(R) knocked back. 01888_ Med. Laser destroyed. 01888_ Lgt. Ion Engine destroyed. 01892_ Lgt. Treads destroyed. 01898_ Ion Engine destroyed. 01903_ Destroyed Sub. Power Source. 01903_ ZR-R0Z(R) system corrupted by crushing effect. 01903_ Wheel destroyed. Map ----- +----------------------------------------------------+ | ??????????????????????####^ =&&%* #?????? | | ?????????????????????## %&%# # # #?????? | | ?????????????????????#^ !!###### #?????? | | ?????????????????????#^ #???# ##?????? | | ?????????????????????#" "### #???# ###????? | | ?????????????????????# "" ### #???#### ##???? | | ?????????????????????# "##?? #??????# ##??? | | ?????????????????????# ##??? ??????### #??? | | ?????????????????????# ##???? ???????### ###? | | ?????????????????????## #?????